Cogmind - Beta 13 @@@ ROGUE MODE // 2024.03.30 @ 21:52:50 Player: firstiteration Result: Destroyed by as-05688 with Assembled Blade Performance ------------- Evolutions (0) 0 Regions Visited (2) 400 Robots Destroyed (18) 90 Value Destroyed (306) 306 Prototype IDs (0) 0 Alien Tech Used (0) 0 Bonus (0) 0 TOTAL SCORE: 796 Bonus ------- None Cogmind --------- Core Integrity 0/250 Matter 290/300 Energy 240/250 System Corruption 6% Temperature Cool (0) Movement Walking (120) Location -10/Mines Parts ------- > --- POWER (1) -------- Ion Engine > --- PROPULSION (2) --- Aluminum Leg Aluminum Leg > --- UTILITY (2) ------ Propulsion Shielding > --- WEAPON (2) ------- Light Assault Rifle > --- INVENTORY (5) ---- Aluminum Leg Light Assault Rifle Light Assault Rifle Peak State ------------ > --- POWER ------------ Light Nuclear Core > --- PROPULSION ------- Aluminum Leg Aluminum Leg > --- UTILITY ---------- Signal Interpreter Propulsion Shielding > --- WEAPON ----------- Assault Rifle Light Assault Rifle > --- INVENTORY -------- Ion Engine Aluminum Leg Aluminum Leg Light Assault Rifle Light Assault Rifle [Rating: 9] Favorites ----------- Power Light Nuclear Core Engine Light Ion Engine Power Core Light Nuclear Core Propulsion Aluminum Leg Treads Light Treads Leg Aluminum Leg Utility Propulsion Shielding Device Seismic Detector Storage Small Storage Unit Processor Signal Interpreter Protection Propulsion Shielding Weapon Light Assault Rifle Ballistic Gun Light Assault Rifle Build | -11 -10 -10 ------- Run | Yrd Mat Min Slots Evolved . | . . . Power . | . . . Propulsion . | . . . Utility . | . . . Weapon . | . . . Parts Attached 17 | 7 8 2 Power 4 | 1 2 1 Engine 3 | 1 1 1 Core 1 | . 1 . Reactor . | . . . Propulsion 6 | 2 3 1 Treads 2 | 2 . . Leg 4 | . 3 1 Wheel . | . . . Hover . | . . . Flight . | . . . Utility 5 | 2 3 . Device 2 | 1 1 . Storage 1 | 1 . . Processor 1 | . 1 . Hackware . | . . . Protection 1 | . 1 . Artifact . | . . . Weapon 2 | 2 . . Energy Gun . | . . . Energy Cannon . | . . . Ballistic Gun 2 | 2 . . Ballistic Cannon . | . . . Launcher . | . . . Special Weapon . | . . . Impact Weapon . | . . . Slashing Weapon . | . . . Piercing Weapon . | . . . Special Melee Weapon . | . . . Unidentified Prototypes . | . . . Parts Lost 5 | . 2 3 Power 2 | . 1 1 Propulsion . | . . . Utility 2 | . 1 1 Weapon 1 | . . 1 Highest Loss Streak 3 | . 2 3 To Critical Strikes . | . . . Average Slot Usage (%) 96 | . 94 98 Engine 6 | . 12 1 Core 7 | . . 12 Treads 9 | . 18 . Leg 18 | . 8 28 Device 9 | . 18 . Storage 1 | . 2 . Processor 7 | . . 13 Protection 8 | . 2 14 Ballistic Gun 27 | . 28 27 Naked Turns . | . . . Heaviest Build 12 | 12 12 9 Greatest Support 40 | 40 40 20 Greatest Overweight (x) 1 | 1 . . Average Overweight (x) . | . . . Largest Inventory Capacity 8 | 8 8 5 Average Capacity 5 | 7 5 5 Most Carried 7 | 7 5 5 Average Carried 4 | 2 4 4 Final Capacity 8 | 8 5 5 Final Carried 5 | 3 5 3 Class Distribution -------------------- 100% | Mutant Dominant Class ---------------- Mutant | -10/Materials Mutant | -10/Mines Resources | -11 -10 -10 ----------- Run | Yrd Mat Min Matter Collected 496 | 286 148 62 Remotely . | . . . Salvage Created 479 | 85 332 62 Parts 43 | 7 25 11 Haulers Intercepted . | . . . Recyclers Shooed . | . . . Parts Field Recycled . | . . . Retrieved Matter . | . . . Parts Self-Destructed . | . . . Prevented . | . . . Kills | -11 -10 -10 ------- Run | Yrd Mat Min Combat Hostiles Destroyed 16 | . 11 5 Guns 16 | . 11 5 Classes Destroyed 4 | 2 2 . Tunneler 1 | 1 . . Recycler 1 | 1 . . Swarmer 11 | . 6 5 Grunt 5 | . 5 . Best Kill Streak 5 | 1 5 3 Combat Bots Only 5 | . 5 3 Max Kills in Single Turn 2 | 1 2 1 Gunslinging 1 | . 1 . Exploded . | . . . Melee . | . . . Uniques/NPCs Destroyed . | . . . Combat | -11 -10 -10 -------- Run | Yrd Mat Min Hostile Shots Fired 108 | . 74 34 Missed 32 | . 21 11 Damage Taken 857 | . 418 439 Core 258 | . 80 178 Absorbed by Shields 107 | . 107 . Redirected to Shielding 25 | . . 25 Core Remaining (%) 100 | 100 . . Volleys Fired 40 | 4 28 8 Largest 2 | 2 2 2 Hottest 40 | 40 40 40 Shots Fired 78 | 8 56 14 Gun 78 | 8 56 14 Cannon . | . . . Launcher . | . . . Special . | . . . Kinetic 78 | 8 56 14 Thermal . | . . . Explosive . | . . . Electromagnetic . | . . . Robot Hit Streak 8 | 3 8 3 Robot Miss Streak 3 | 1 3 1 Penetration Max . | . . . Secondary Targets 7 | . 6 1 Max Gunslinging Chain 1 | . 1 1 Shots Hit Robots 45 | 6 32 7 Core Hits 26 | 3 18 5 Critical Kills . | . . . Critical Parts Destroyed . | . . . Critical Strikes . | . . . Melee Attacks . | . . . Impact . | . . . Slashing . | . . . Piercing . | . . . Sneak Attacks . | . . . Combat Hostiles . | . . . Follow-up Attacks . | . . . Damage Inflicted 521 | 63 356 102 Guns 521 | 63 356 102 Cannons . | . . . Explosions . | . . . Melee . | . . . Ramming . | . . . Kinetic 521 | 63 356 102 Thermal . | . . . Explosive . | . . . Electromagnetic . | . . . Impact . | . . . Slashing . | . . . Piercing . | . . . Highest Corruption 6 | . . 6 Average Corruption 6 | . . 6 Corruption Purged . | . . . Corruption Blocked . | . . . Effects 2 | . . 2 Parts Rejected 1 | . . 1 Weapon Failures 1 | . . 1 Overload Shots . | . . . Overflow Damage . | . . . Projectiles . | . . . Explosions . | . . . Melee . | . . . Knockbacks . | . . . Impact . | . . . Kinetic . | . . . Secondary . | . . . Self-Inflicted Damage . | . . . Shots . | . . . Rammed . | . . . Targets Rammed . | . . . Kicked . | . . . Crushed . | . . . Highest Temperature 12 | . 12 8 Average Temperature 4 | . 4 3 Received Heat Transfer 126 | . 126 . Siege Activations . | . . . Robots Corrupted . | . . . Combat Hostiles . | . . . Parts Fried . | . . . Impact Corruptions . | . . . Robots Melted . | . . . Combat Hostiles . | . . . Parts Melted . | . . . Heat Transferred . | . . . Parts Sabotaged . | . . . Parts Stolen . | . . . Parts Stripped . | . . . Power Chain Reactions . | . . . Alert | -11 -10 -10 ------- Run | Yrd Mat Min Peak Influence 261 | 10 261 163 Initial 23 | . 6 23 Average 109 | 5 132 116 Maximum Alert Level 1 | . 1 . Low Security (%) 87 | 100 71 100 Level 1 12 | . 28 . Level 2 . | . . . Level 3 . | . . . Level 4 . | . . . Level 5 . | . . . High Security . | . . . Max Security . | . . . Squads Dispatched 1 | . 1 . Investigation . | . . . Extermination . | . . . Reinforcement 1 | . 1 . Assault . | . . . Garrison . | . . . Intercept . | . . . Searches Triggered . | . . . Construction Impeded . | . . . Haulers Reinforced . | . . . Active Scanning Responses . | . . . Cargo Convoy Interrupts . | . . . Stealth | -11 -10 -10 --------- Run | Yrd Mat Min Distress Signals 3 | . 3 . Communications Jammed . | . . . Distress Signals . | . . . Times Spotted 29 | . 16 13 Peak Tracking Total 7 | . 7 7 Tactical Retreats 3 | . . 3 Traps | -11 -10 -10 ------- Run | Yrd Mat Min Traps Triggered . | . . . Indirectly . | . . . Trap Hack Attempts . | . . . Triggered . | . . . Disarmed . | . . . Reprogrammed . | . . . Reused . | . . . Traps Extracted . | . . . Installed . | . . . Triggered . | . . . Machines | -11 -10 -10 ---------- Run | Yrd Mat Min Machines Disabled . | . . . Max in Single Turn . | . . . Machines Repaired . | . . . Machines Dismantled . | . . . Machines Sabotaged . | . . . Overloaded Fab Kills . | . . . Hacking | -11 -10 -10 --------- Run | Yrd Mat Min Machines Accessed 2 | . 2 . Terminals 2 | . 2 . Fabricators . | . . . Repair Stations . | . . . Recycling Units . | . . . Scanalyzers . | . . . Garrison Access . | . . . Total Hacks 4 | . 4 . Successful . | . . . Failed 4 | . 4 . Catastrophic 1 | . 1 . Database Lockouts . | . . . Manual . | . . . Terminals 4 | . 4 . Fabricators . | . . . Repair Stations . | . . . Recycling Units . | . . . Scanalyzers . | . . . Garrison Access . | . . . Terminal Hacks . | . . . Fabricator Hacks . | . . . Repair Station Hacks . | . . . Recycling Unit Hacks . | . . . Scanalyzer . | . . . Garrison Access Hacks . | . . . Unauthorized Hacks . | . . . Terminals . | . . . Fabricators . | . . . Repair Stations . | . . . Recycling Units . | . . . Scanalyzers . | . . . Garrison Access . | . . . Data Cores Recovered . | . . . Used . | . . . Hacking Detections 2 | . 2 . Full Trace Events . | . . . Feedback Events . | . . . Feedback Blocked . | . . . Robot Schematics Acquired . | . . . Robots Built . | . . . Authchips . | . . . Time . | . . . Total Robot Build Rating . | . . . Part Schematics Acquired . | . . . Parts Built . | . . . Authchips . | . . . Time . | . . . Total Part Build Rating . | . . . Parts Repaired . | . . . Time . | . . . Parts Recycled . | . . . Recycled Matter . | . . . Retrieved Matter . | . . . Retrieved Components . | . . . Parts Scanalyzed . | . . . Part Schematics Acquired . | . . . Parts Damaged . | . . . Bothacking | -11 -10 -10 ------------ Run | Yrd Mat Min Used RIF Installer . | . . . Robots Hacked . | . . . Non-combat . | . . . Combat . | . . . Robot Hacks Applied . | . . . Relay Couplers Released . | . . . Fabnet Peak Effective % . | . . . Robots Rewired . | . . . Allies Hacked . | . . . Hacks Repelled . | . . . Allies | -11 -10 -10 -------- Run | Yrd Mat Min Total Allies . | . . . Largest Group . | . . . Highest-Rated Group . | . . . Highest-Rated Ally . | . . . Total Orders . | . . . Ally Attacks . | . . . Total Damage . | . . . Kills . | . . . Allies Corrupted . | . . . Allies Melted . | . . . Intel | -11 -10 -10 ------- Run | Yrd Mat Min Robot Analysis Total . | . . . Derelict Logs Recovered . | . . . Drone Launches . | . . . Drone Recoveries . | . . . Exploration | -11 -10 -10 ------------- Run | Yrd Mat Min Turns Passed 1081 | 142 464 475 Spaces Moved 712 | 90 250 372 Core 32 | 32 . . Treads 195 | 58 137 . Legs 485 | . 113 372 Wheels . | . . . Hover . | . . . Flight . | . . . Fastest Speed 50 | 50 120 120 Average Speed 128 | 123 141 120 Slowest Speed 160 | 160 160 120 Overloaded Moves . | . . . Propulsion Burnouts . | . . . Robots Hopped . | . . . Cave-ins Triggered . | . . . Exploration Rate (%) 36 | 5 38 66 Regions Visited 2 Branch Regions 1 Pre-discovered Areas . | . . . Known Exits Taken 1 | . 1 . Unknown Exits Taken 1 | 1 . . Scrap Searched 2 | . . 2 Spaces Dug . | . . . Terrain Destroyed . | . . . Melee . | . . . Projectile . | . . . AOE . | . . . Terrain Rammed . | . . . Walls Destroyed . | . . . Machines Disabled . | . . . Actions | -11 -10 -10 --------- Run | Yrd Mat Min Total 812 | 114 311 387 Wait 17 | 3 9 5 Move 710 | 89 249 372 Hop . | . . . Pick Up 19 | 10 9 . Fast Attach 3 | 1 2 . Attach 12 | 6 4 2 Detach . | . . . Swap 2 | . 2 . Drop 9 | 1 8 . Fire 40 | 4 28 8 Melee . | . . . Ram . | . . . Kick . | . . . Crush . | . . . Escape Stasis . | . . . Rewire . | . . . Trap . | . . . Miscellaneous . | . . . Route ------- -11/Scrapyard -10/Materials -10/Mines (discovered 3 exits: *Mat x2 / *Exi) History --------- Turn | Location | Event 8 | -11/Scrapyard | Discovered new exit (range 16) 143 | -11/Scrapyard | Entered Materials 309 | -10/Materials | Build established: Mutant 524 | -10/Materials | Discovered new exit (range 8) 606 | -10/Materials | Identified exit to Mines 607 | -10/Materials | Entered Mines 633 | -10/Mines | Deemed a non-threat by the Exiles lab entrance 635 | -10/Mines | Discovered new exit (range 5) 639 | -10/Mines | Identified exit to Exiles 671 | -10/Mines | Discovered new exit (range 9) 680 | -10/Mines | Identified exit to Materials 689 | -10/Mines | Discovered exit to Materials (range 13) 996 | -10/Mines | Assembled infested the area 1043 | -10/Mines | Core integrity fell below 50% 1062 | -10/Mines | Core integrity fell below 20% 1082 | -10/Mines | Destroyed by as-05688 with Assembled Blade Last Messages --------------- dispatching Demolisher response squad. 01038_ K-01 Serf collects debris. 01042_ Lgt. Nuclear Core destroyed. 01050_ as-45373 sneak attacks. 01050_ K-01 Serf destroyed. 01051_ K-01 Serf collects debris. 01056_ as-37895 sneak attacks. 01056_ K-01 Serf system corrupted by crushing effect. 01056_ K-01 Serf knocked back. 01060_ Knocked back. 01065_ Signal Interpreter destroyed. 01065_ Assault Rifle destroyed. 01065_ System corrupted by crushing effect (+5). 01065_ System corrupted by crushing effect (+1). 01065_ System corrupted: Lgt. Assault Rifle jammed. 01069_ Knocked back. 01072_ as-05688 sneak attacks. 01081_ System corrupted: Aluminum Leg rejected. Map ----- +----------------------------------------------------+ | ????? ##????## ! ##??? | | ???? ##??????## """ #??? | | ???? ###????????### """ #??? | | ??? ###?????????????## """ ##??? | | ?? #?????????????????## ##???? | | ?? ???????????????????## #????? | | ? ?????????????????????##### #????? | | ?? ?????????###??????????????## #????? | | ?? ????????? ???????????????## #????? | | ?? ????????? ????????????????# #????? | | ?? ????????? #????????????????# #????? | | ?# #???????? #????????????????# #????? | | ?# #???????? #????????????????# #????? | | ?# #???????? #????????????????# #????? | | ?# #??????## #????????????????#% #????? | | ?# #??????# ##???????????????#[ #????? | | ?# #??????# #???????????????# #????? | | ?# #??????# #???????????????# #????? | | ## ######## #????????????????# #????? | | #?????????????????# #????? | | ########### #?????????????????# #????? | | ??????????# #??????????####???# #????? | | ??????????# #?????????## ##??# #????? | | ??????????## #????????## ####a #????? | | ####???????# #????????# a a a #????? | | #???????# #######??# @""" #????? | | #???????# #??## """ ###????? | | #???????####### #???## """a ##??????? | | #?????????????# #????# ##???????? | | #?????????????# #???## ##???????? | | #?????????????# #??## #???????? | | # #?????????????# #?## ##??????? | | =# #?????????????# ### #??????? | | *# #?????????????# ## #??????? | | ## #?????????????# ## ##??????? | | ?# ###???????????##### #### ###???????? | | ?# ##??????????????####??# #?????????? | | ?### #????????????????????# #?????????? | | ??## ##????????????????????# ??????????? | | ??# #????????????????????? ??????????? | | ??# ##?????????????????????? ??????????? | | ?#> #??????????????????????????????????? | | ?####??????????????????????????????????? | | ???????????????????????????????????????? | | ???????????????????????????????????????? | | ???????????????????????????????????????? | | ???????????????????????????????????????? | | ???????????????????????????????????????? | | ???????????????????????????????????????? | | | +----------------------------------------------------+ Best States ------------- Heat Dissipation 25 Energy Generation 14 Energy Capacity 250 Matter Stores 300 Matter Capacity 300 Sight Range 16 Terrain Scan Density 10 Propulsion Shielding 33 Evasion (%) 55 Recoil Reduction 2 Item Schematics ----------------- None Robot Schematics ------------------ None Fabricated ------------ Nothing Alien Tech Used ----------------- None Achievements -------------- None Challenges ------------ None Game ------ Seed ZhirovSapperFacilitator Manual? 0 Play Time 00:13:48 Cumulative 3.4 hours Start 2024.03.30 @ 21:40:22 End 2024.03.30 @ 21:52:50 Sessions 1 Manual Loads 0 Difficulty Rogue Special Mode None Game No. 10 Rogue 10 Adventurer 0 Explorer 0 Win Type - Total 0 Types 0/0/0/0/0/0/0/0/0 Lore% 6 Gallery% 7 Achievement% 5 Wizard Run 0 Options --------- Layout 1 ASCII 0 Keyboard 0 Movement Mouse Keybinds 0 Fullscreen 1 Font 24/Smallcaps Map View 50x35 Zoom Use 0% Tactical HUD 1 Map Filters NONE Filters NONE Steam 1 RUN: c52df49d-0a2d-4226-9716-951070528305